[Event "*** Titled Tuesday Blitz"]
[Site "Chess.com"]
[Date "2019.03.05"]
[Round "9"]
[White "chessking2151"]
[Black "riconaipe"]
[Result "1-0"]
[WhiteElo "2590"]
[BlackElo "2439"]
[TimeControl "180+2"]
[EndTime "15:13:16 PST"]
[Termination "chessking2151 won by resignation"]

1. Nf3 {[%clk 0:03:01.9]} 1... Nf6 {[%clk 0:03:00.1]} 2. g3 {[%clk 0:03:00.5]}
2... g6 {[%clk 0:03:00.5]} 3. Bg2 {[%clk 0:03:02.1]} 3... Bg7 {[%clk 0:03:00.4]}
4. O-O {[%clk 0:03:03.5]} 4... O-O {[%clk 0:03:02]} 5. c4 {[%clk 0:03:04.7]}
5... c6 {[%clk 0:03:00.6]} 6. b3 {[%clk 0:03:04.7]} 6... d5 {[%clk 0:03:02.1]}
7. Bb2 {[%clk 0:03:04.7]} 7... Bg4 {[%clk 0:03:02.3]} 8. Ne5 {[%clk 0:03:03.5]}
8... Be6 {[%clk 0:03:02.4]} 9. d4 {[%clk 0:02:40.1]} 9... Nbd7 {[%clk
0:03:00.8]} 10. Nc3 {[%clk 0:02:07.3]} 10... dxc4 {[%clk 0:02:57.7]} 11. Nxc4
{[%clk 0:02:07.3]} 11... Bxc4 {[%clk 0:02:56.6]} 12. bxc4 {[%clk 0:02:08.5]}
12... Nb6 {[%clk 0:02:58.1]} 13. Qd3 {[%clk 0:02:07]} 13... Qc7 {[%clk
0:02:57.1]} 14. a4 {[%clk 0:02:05.5]} 14... Rad8 {[%clk 0:02:58]} 15. a5 {[%clk
0:02:04]} 15... Nc8 {[%clk 0:02:57.2]} 16. e3 {[%clk 0:01:58.1]} 16... e5 {[%clk
0:02:56.6]} 17. d5 {[%clk 0:01:59.1]} 17... cxd5 {[%clk 0:02:50.9]} 18. Nxd5
{[%clk 0:01:58.9]} 18... Nxd5 {[%clk 0:02:51.3]} 19. cxd5 {[%clk 0:02:00.1]}
19... e4 {[%clk 0:02:48]} 20. Qb3 {[%clk 0:02:01.1]} 20... Bxb2 {[%clk
0:02:47.4]} 21. Qxb2 {[%clk 0:02:03]} 21... f5 {[%clk 0:02:48.2]} 22. Rfc1
{[%clk 0:01:53.8]} 22... Qg7 {[%clk 0:02:45.3]} 23. Qb3 {[%clk 0:01:54.4]} 23...
Nd6 {[%clk 0:02:45.7]} 24. Ra2 {[%clk 0:01:50.9]} 24... g5 {[%clk 0:02:45.5]}
25. Rac2 {[%clk 0:01:49]} 25... Rd7 {[%clk 0:02:46.6]} 26. Qb4 {[%clk
0:01:19.9]} 26... h5 {[%clk 0:02:46.2]} 27. a6 {[%clk 0:01:14.4]} 27... b6
{[%clk 0:02:27.1]} 28. Rc6 {[%clk 0:01:11.1]} 28... Qe5 {[%clk 0:02:24.7]} 29.
Bf1 {[%clk 0:00:59.5]} 29... f4 {[%clk 0:02:21.9]} 30. Qc3 {[%clk 0:00:30.9]}
30... Qxd5 {[%clk 0:01:57.4]} 31. Be2 {[%clk 0:00:19.6]} 31... h4 {[%clk
0:01:49.9]} 32. Rd1 {[%clk 0:00:19.4]} 32... Qe6 {[%clk 0:01:15.5]} 33. Bc4
{[%clk 0:00:15.2]} 33... Nxc4 {[%clk 0:00:58.6]} 34. Rxe6 {[%clk 0:00:16.1]}
34... Rxd1+ {[%clk 0:00:59.5]} 35. Kg2 {[%clk 0:00:17.8]} 35... Nd6 {[%clk
0:00:51]} 36. Rg6+ {[%clk 0:00:17.2]} 36... Kf7 {[%clk 0:00:51.7]} 37. Qg7+
{[%clk 0:00:16.8]} 37... Ke8 {[%clk 0:00:51.7]} 38. Re6+ {[%clk 0:00:17.7]}
38... Kd8 {[%clk 0:00:51.9]} 39. Qxf8+ {[%clk 0:00:17.9]} 39... Kd7 {[%clk
0:00:53.1]} 40. Qe7+ {[%clk 0:00:17.3]} 40... Kc6 {[%clk 0:00:53.6]} 41. gxf4
{[%clk 0:00:17.3]} 41... gxf4 {[%clk 0:00:53.8]} 42. exf4 {[%clk 0:00:18.6]}
42... e3 {[%clk 0:00:54.1]} 43. Rxe3 {[%clk 0:00:18.9]} 43... Rd5 {[%clk
0:00:48.9]} 44. Rc3+ {[%clk 0:00:18.8]} 44... Kb5 {[%clk 0:00:49.9]} 45. Qe2+
{[%clk 0:00:19.4]} 45... Kb4 {[%clk 0:00:47.8]} 46. Qb2+ {[%clk 0:00:20.2]} 1-0

[Event "*** Titled Tuesday Blitz"]
[Site "Chess.com"]
[Date "2019.03.05"]
[Round "9"]
[White "SaraciNderim"]
[Black "PocketPivot"]
[Result "1-0"]
[WhiteElo "2750"]
[BlackElo "2519"]
[TimeControl "180+2"]
[EndTime "15:13:27 PST"]
[Termination "SaraciNderim won by resignation"]

1. d4 {[%clk 0:03:00.3]} 1... e6 {[%clk 0:03:00.3]} 2. c4 {[%clk 0:03:00.9]}
2... Nf6 {[%clk 0:03:00.1]} 3. Nf3 {[%clk 0:03:02.3]} 3... Bb4+ {[%clk 0:02:59]}
4. Bd2 {[%clk 0:03:03.7]} 4... Bxd2+ {[%clk 0:02:58.8]} 5. Nbxd2 {[%clk
0:03:05.6]} 5... d5 {[%clk 0:02:54.5]} 6. g3 {[%clk 0:03:06.6]} 6... O-O {[%clk
0:02:46.9]} 7. Bg2 {[%clk 0:03:07.9]} 7... Qe7 {[%clk 0:02:48.7]} 8. O-O {[%clk
0:03:08.4]} 8... Rd8 {[%clk 0:02:48.8]} 9. Qc2 {[%clk 0:03:09.3]} 9... Nc6
{[%clk 0:02:48.8]} 10. e3 {[%clk 0:02:59.3]} 10... e5 {[%clk 0:02:39.3]} 11.
dxe5 {[%clk 0:02:34.1]} 11... Nxe5 {[%clk 0:02:34.8]} 12. Nxe5 {[%clk
0:02:34.8]} 12... Qxe5 {[%clk 0:02:36.7]} 13. cxd5 {[%clk 0:02:33.6]} 13... Nxd5
{[%clk 0:02:36.5]} 14. Nc4 {[%clk 0:02:23.6]} 14... Qe7 {[%clk 0:02:29.3]} 15.
Rad1 {[%clk 0:02:23.8]} 15... Be6 {[%clk 0:02:19.6]} 16. a3 {[%clk 0:02:13.2]}
16... c6 {[%clk 0:02:18.9]} 17. e4 {[%clk 0:02:08.3]} 17... Nb6 {[%clk
0:02:15.8]} 18. Nxb6 {[%clk 0:02:02.3]} 18... axb6 {[%clk 0:02:17.7]} 19. e5
{[%clk 0:01:58.3]} 19... Qc5 {[%clk 0:01:53.2]} 20. Be4 {[%clk 0:01:45.6]} 20...
Qxc2 {[%clk 0:01:32.6]} 21. Bxc2 {[%clk 0:01:47.5]} 21... Kf8 {[%clk 0:01:34]}
22. Rxd8+ {[%clk 0:01:40.7]} 22... Rxd8 {[%clk 0:01:34]} 23. Rd1 {[%clk
0:01:42.6]} 23... Ra8 {[%clk 0:01:14.1]} 24. f4 {[%clk 0:01:41.3]} 24... g6
{[%clk 0:01:15]} 25. Kf2 {[%clk 0:01:41.9]} 25... Ke7 {[%clk 0:01:11.8]} 26. Ke3
{[%clk 0:01:42.8]} 26... Ra5 {[%clk 0:01:10.8]} 27. Be4 {[%clk 0:01:41.2]} 27...
Rc5 {[%clk 0:01:07.1]} 28. Kd2 {[%clk 0:01:30.3]} 28... Bd5 {[%clk 0:01:02.2]}
29. b4 {[%clk 0:01:21.4]} 29... Rc4 {[%clk 0:00:55.7]} 30. Bd3 {[%clk
0:01:21.4]} 30... Rd4 {[%clk 0:00:50.3]} 31. Ke3 {[%clk 0:01:19]} 31... c5
{[%clk 0:00:49.6]} 32. Rc1 {[%clk 0:01:18.7]} 32... Bc6 {[%clk 0:00:31.7]} 33.
bxc5 {[%clk 0:01:17.1]} 33... bxc5 {[%clk 0:00:33.6]} 34. Rxc5 {[%clk
0:01:16.9]} 34... Ra4 {[%clk 0:00:34.9]} 35. Rc3 {[%clk 0:01:16.3]} 35... h5
{[%clk 0:00:31.3]} 36. Bc2 {[%clk 0:01:14.6]} 36... Ra5 {[%clk 0:00:32.7]} 37.
Be4 {[%clk 0:01:15]} 37... Bxe4 {[%clk 0:00:27.8]} 38. Kxe4 {[%clk 0:01:16.9]}
38... h4 {[%clk 0:00:29.5]} 39. Rb3 {[%clk 0:01:13.2]} 39... hxg3 {[%clk
0:00:28.1]} 40. hxg3 {[%clk 0:01:15.1]} 40... Ra4+ {[%clk 0:00:29.1]} 41. Kd5
{[%clk 0:01:16.3]} 41... Ra5+ {[%clk 0:00:29.7]} 42. Kc4 {[%clk 0:01:16.4]}
42... Ke8 {[%clk 0:00:28.4]} 43. Kd4 {[%clk 0:01:14]} 43... Ra4+ {[%clk
0:00:28.3]} 44. Kd5 {[%clk 0:01:13.8]} 44... Ra6 {[%clk 0:00:26.8]} 45. g4
{[%clk 0:01:13.5]} 45... Kd8 {[%clk 0:00:25.2]} 46. f5 {[%clk 0:01:14]} 46...
gxf5 {[%clk 0:00:22.8]} 47. gxf5 {[%clk 0:01:15.9]} 47... Ke8 {[%clk 0:00:24.3]}
48. f6 {[%clk 0:01:13.1]} 48... Ra5+ {[%clk 0:00:25.2]} 49. Kd6 {[%clk 0:01:14]}
49... Ra6+ {[%clk 0:00:26.4]} 50. Kd5 {[%clk 0:01:13]} 50... Ra5+ {[%clk
0:00:27.6]} 51. Ke4 {[%clk 0:01:14.4]} 51... Ra4+ {[%clk 0:00:28.7]} 52. Kf5
{[%clk 0:01:15.5]} 52... Ra7 {[%clk 0:00:27.4]} 53. Rh3 {[%clk 0:01:13.6]} 53...
Kd7 {[%clk 0:00:25.7]} 54. Rh7 {[%clk 0:01:11.5]} 1-0

[Event "*** Titled Tuesday Blitz"]
[Site "Chess.com"]
[Date "2019.03.05"]
[Round "9"]
[White "Babas"]
[Black "Hieronymus00"]
[Result "1/2-1/2"]
[WhiteElo "2270"]
[BlackElo "2215"]
[TimeControl "180+2"]
[EndTime "15:13:31 PST"]
[Termination "Game drawn by agreement"]

1. d4 {[%clk 0:03:01.4]} 1... Nf6 {[%clk 0:02:59.2]} 2. Nf3 {[%clk 0:02:58.4]}
2... g6 {[%clk 0:03:00.2]} 3. Bf4 {[%clk 0:02:58.8]} 3... Bg7 {[%clk 0:03:01.3]}
4. Nc3 {[%clk 0:02:59.8]} 4... O-O {[%clk 0:03:02.8]} 5. e4 {[%clk 0:02:59.5]}
5... d6 {[%clk 0:03:04]} 6. e5 {[%clk 0:03:00.9]} 6... dxe5 {[%clk 0:02:58.9]}
7. dxe5 {[%clk 0:03:01.3]} 7... Qxd1+ {[%clk 0:02:58.5]} 8. Rxd1 {[%clk
0:03:01.1]} 8... Nh5 {[%clk 0:02:49.9]} 9. Bg5 {[%clk 0:02:57.5]} 9... Nc6
{[%clk 0:02:48.1]} 10. Bb5 {[%clk 0:02:44.4]} 10... Nxe5 {[%clk 0:02:47.2]} 11.
Nxe5 {[%clk 0:01:53.8]} 11... Bxe5 {[%clk 0:02:46.5]} 12. Bxe7 {[%clk 0:01:45]}
12... Bg4 {[%clk 0:02:29.6]} 13. Bxf8 {[%clk 0:00:23.7]} 13... Bxd1 {[%clk
0:02:29.3]} 14. Nxd1 {[%clk 0:00:24.7]} 14... Kxf8 {[%clk 0:02:26.2]} 15. g3
{[%clk 0:00:25.3]} 15... c6 {[%clk 0:02:26.1]} 16. Bd3 {[%clk 0:00:26.1]} 16...
Re8 {[%clk 0:02:21.5]} 17. Kd2 {[%clk 0:00:27.1]} 17... Nf6 {[%clk 0:02:19.5]}
18. Re1 {[%clk 0:00:28.3]} 18... Ng4 {[%clk 0:02:18.8]} 19. f4 {[%clk
0:00:10.6]} 19... Bd4 {[%clk 0:02:14.6]} 20. Rxe8+ {[%clk 0:00:12.5]} 20... Kxe8
{[%clk 0:02:15.6]} 21. c3 {[%clk 0:00:09.4]} 21... Bg1 {[%clk 0:02:13.1]} 22. h3
{[%clk 0:00:10.7]} 22... Nf6 {[%clk 0:02:11]} 23. g4 {[%clk 0:00:11.7]} 23...
Nd5 {[%clk 0:02:11.2]} 24. f5 {[%clk 0:00:12.4]} 24... Nf4 {[%clk 0:02:08.2]}
25. fxg6 {[%clk 0:00:13.8]} 25... fxg6 {[%clk 0:01:59.1]} 26. Bf1 {[%clk
0:00:14.5]} 26... Nd5 {[%clk 0:01:54.8]} 27. a3 {[%clk 0:00:13.2]} 27... Ke7
{[%clk 0:01:54.4]} 28. c4 {[%clk 0:00:13.3]} 28... Nf4 {[%clk 0:01:53.1]} 29.
Ne3 {[%clk 0:00:13.8]} 29... Kd6 {[%clk 0:01:52.4]} 30. b4 {[%clk 0:00:14]}
30... Ke5 {[%clk 0:01:51.7]} 31. Nd1 {[%clk 0:00:09]} 31... Kd4 {[%clk
0:01:52.3]} 32. Nc3 {[%clk 0:00:07.8]} 32... Be3+ {[%clk 0:01:50.5]} 33. Kc2
{[%clk 0:00:09.1]} 33... Bg1 {[%clk 0:01:46.6]} 34. Ne2+ {[%clk 0:00:09.1]}
34... Nxe2 {[%clk 0:01:47.2]} 35. Bxe2 {[%clk 0:00:11]} 35... Ke3 {[%clk
0:01:46.9]} 36. Bd1 {[%clk 0:00:12.4]} 36... g5 {[%clk 0:01:37.8]} 37. Kc3
{[%clk 0:00:05.5]} 37... h6 {[%clk 0:01:34.5]} 38. Bc2 {[%clk 0:00:06.5]} 38...
Kf3 {[%clk 0:01:34.3]} 39. Bg6 {[%clk 0:00:08]} 39... Kg3 {[%clk 0:01:34.4]} 40.
Bh5 {[%clk 0:00:09.9]} 40... Kxh3 {[%clk 0:01:35.3]} 41. Kb3 {[%clk 0:00:11.7]}
41... Kg3 {[%clk 0:01:36.4]} 42. a4 {[%clk 0:00:13.4]} 42... Kf4 {[%clk
0:01:34.7]} 43. b5 {[%clk 0:00:15.3]} 43... Ke4 {[%clk 0:01:29.1]} 44. a5 {[%clk
0:00:15.2]} 44... cxb5 {[%clk 0:01:17]} 45. cxb5 {[%clk 0:00:17.1]} 45... Kd5
{[%clk 0:01:17.8]} 46. a6 {[%clk 0:00:12.1]} 46... bxa6 {[%clk 0:01:16]} 47.
bxa6 {[%clk 0:00:14]} 47... Kc6 {[%clk 0:01:15.5]} 48. Ka4 {[%clk 0:00:15.9]}
48... Kb6 {[%clk 0:01:16.6]} 49. Bg6 {[%clk 0:00:17.2]} 49... Kxa6 {[%clk
0:01:17.6]} 50. Bh5 {[%clk 0:00:19.1]} 50... Kb6 {[%clk 0:01:18.8]} 51. Bg6
{[%clk 0:00:21]} 51... Kc5 {[%clk 0:01:18.7]} 52. Bh5 {[%clk 0:00:22.9]} 52...
Kd4 {[%clk 0:01:14.6]} 53. Bg6 {[%clk 0:00:24.8]} 53... Ke5 {[%clk 0:01:14.8]}
54. Bh5 {[%clk 0:00:26.7]} 54... Kf4 {[%clk 0:01:14.8]} 55. Kb5 {[%clk
0:00:28.6]} 55... Bf2 {[%clk 0:01:14.1]} 56. Ka4 {[%clk 0:00:30.5]} 56... a6
{[%clk 0:01:14.4]} 57. Ka5 {[%clk 0:00:31.5]} 1/2-1/2

[Event "*** Titled Tuesday Blitz"]
[Site "Chess.com"]
[Date "2019.03.05"]
[Round "9"]
[White "volcanoexplorer"]
[Black "Bad4life"]
[Result "1-0"]
[WhiteElo "2379"]
[BlackElo "2457"]
[TimeControl "180+2"]
[EndTime "15:13:55 PST"]
[Termination "volcanoexplorer won by resignation"]

1. e4 {[%clk 0:03:01.9]} 1... c5 {[%clk 0:03:00.2]} 2. Nf3 {[%clk 0:03:02.8]}
2... d6 {[%clk 0:03:01.5]} 3. d4 {[%clk 0:03:03.8]} 3... cxd4 {[%clk 0:03:03.4]}
4. Nxd4 {[%clk 0:03:05.6]} 4... Nf6 {[%clk 0:03:05]} 5. Nc3 {[%clk 0:03:06.9]}
5... g6 {[%clk 0:03:06.7]} 6. Be3 {[%clk 0:03:03.7]} 6... Bg7 {[%clk 0:03:07.8]}
7. f3 {[%clk 0:03:05.1]} 7... O-O {[%clk 0:03:09.4]} 8. Qd2 {[%clk 0:03:04.9]}
8... Nc6 {[%clk 0:03:11]} 9. O-O-O {[%clk 0:03:05.7]} 9... d5 {[%clk 0:03:12.2]}
10. Qe1 {[%clk 0:03:06.9]} 10... e6 {[%clk 0:03:13]} 11. g4 {[%clk 0:02:58.2]}
11... Qc7 {[%clk 0:03:05.6]} 12. g5 {[%clk 0:02:12.3]} 12... Nd7 {[%clk
0:02:54.7]} 13. exd5 {[%clk 0:01:49.9]} 13... Nb4 {[%clk 0:02:49.9]} 14. Ndb5
{[%clk 0:01:39.5]} 14... Qa5 {[%clk 0:02:39.4]} 15. a3 {[%clk 0:01:26.4]} 15...
Na6 {[%clk 0:02:01.1]} 16. dxe6 {[%clk 0:01:21.5]} 16... fxe6 {[%clk 0:02:00.6]}
17. Bc4 {[%clk 0:00:57.1]} 17... Ne5 {[%clk 0:01:53.7]} 18. Qe2 {[%clk
0:00:44.2]} 18... Bd7 {[%clk 0:01:41.1]} 19. Bd4 {[%clk 0:00:31.2]} 19... Bxb5
{[%clk 0:01:17.7]} 20. Bxe6+ {[%clk 0:00:25.4]} 20... Kh8 {[%clk 0:01:00]} 21.
Qxe5 {[%clk 0:00:20.4]} 21... Qc7 {[%clk 0:00:34.9]} 22. Qxg7+ {[%clk
0:00:20.2]} 22... Qxg7 {[%clk 0:00:35.5]} 23. Bxg7+ {[%clk 0:00:22.1]} 23...
Kxg7 {[%clk 0:00:36.6]} 24. Nxb5 {[%clk 0:00:23.7]} 24... Rxf3 {[%clk 0:00:37]}
25. Rd7+ {[%clk 0:00:24.5]} 25... Kh8 {[%clk 0:00:38.3]} 26. Nd6 {[%clk
0:00:25.4]} 26... Nc5 {[%clk 0:00:37.1]} 27. Nf7+ {[%clk 0:00:22.9]} 27... Kg7
{[%clk 0:00:38.5]} 28. Ne5+ {[%clk 0:00:19.8]} 28... Nxd7 {[%clk 0:00:35]} 29.
Nxf3 {[%clk 0:00:21]} 29... Nc5 {[%clk 0:00:35.9]} 30. Bc4 {[%clk 0:00:22.1]}
30... Rc8 {[%clk 0:00:36.1]} 31. b3 {[%clk 0:00:21.9]} 31... Ne4 {[%clk
0:00:36.8]} 32. Re1 {[%clk 0:00:22.2]} 32... Nc5 {[%clk 0:00:31.7]} 33. Re7+
{[%clk 0:00:22.6]} 33... Kf8 {[%clk 0:00:33.4]} 34. Rxh7 {[%clk 0:00:23.2]}
34... Rc6 {[%clk 0:00:33.4]} 35. Ne5 {[%clk 0:00:23.8]} 35... Rd6 {[%clk
0:00:32.1]} 36. h4 {[%clk 0:00:18.5]} 36... Ne4 {[%clk 0:00:32.3]} 37. Rh6
{[%clk 0:00:13.8]} 37... Kg7 {[%clk 0:00:27.3]} 38. Bf7 {[%clk 0:00:13.9]} 38...
Nc3 {[%clk 0:00:21.3]} 39. Rxg6+ {[%clk 0:00:13.4]} 39... Rxg6 {[%clk
0:00:22.1]} 40. Bxg6 {[%clk 0:00:15.3]} 40... Ne2+ {[%clk 0:00:21]} 41. Kd2
{[%clk 0:00:16]} 41... Nf4 {[%clk 0:00:22.6]} 42. h5 {[%clk 0:00:16.8]} 42... b5
{[%clk 0:00:22]} 43. h6+ {[%clk 0:00:17.9]} 43... Kh8 {[%clk 0:00:22.3]} 44. Ke3
{[%clk 0:00:18.9]} 44... Ne6 {[%clk 0:00:22.5]} 45. Be8 {[%clk 0:00:15.7]} 45...
Nxg5 {[%clk 0:00:23.2]} 46. Nf7+ {[%clk 0:00:17]} 46... Nxf7 {[%clk 0:00:24.7]}
47. Bxf7 {[%clk 0:00:18.9]} 47... Kh7 {[%clk 0:00:26.3]} 48. Be8 {[%clk
0:00:20.4]} 48... a6 {[%clk 0:00:27]} 49. c4 {[%clk 0:00:21.6]} 49... bxc4
{[%clk 0:00:28]} 50. bxc4 {[%clk 0:00:23.5]} 50... Kxh6 {[%clk 0:00:29.6]} 51.
c5 {[%clk 0:00:25.1]} 51... Kg7 {[%clk 0:00:31.5]} 52. c6 {[%clk 0:00:26.6]}
52... Kf8 {[%clk 0:00:33.4]} 53. c7 {[%clk 0:00:28.2]} 53... Kxe8 {[%clk
0:00:34.6]} 54. c8=Q+ {[%clk 0:00:29.7]} 1-0

[Event "*** Titled Tuesday Blitz"]
[Site "Chess.com"]
[Date "2019.03.05"]
[Round "9"]
[White "politeplayer"]
[Black "1995Tiger"]
[Result "0-1"]
[WhiteElo "2087"]
[BlackElo "2008"]
[TimeControl "180+2"]
[EndTime "15:13:57 PST"]
[Termination "1995Tiger won by resignation"]

1. e4 {[%clk 0:03:01.9]} 1... e6 {[%clk 0:03:00.1]} 2. d4 {[%clk 0:03:01.5]}
2... d5 {[%clk 0:03:01]} 3. exd5 {[%clk 0:03:02.8]} 3... exd5 {[%clk 0:03:02.9]}
4. Nf3 {[%clk 0:03:04.4]} 4... Bd6 {[%clk 0:03:02.4]} 5. Bd3 {[%clk 0:03:05.4]}
5... Nc6 {[%clk 0:03:02.5]} 6. O-O {[%clk 0:03:05.2]} 6... Bg4 {[%clk
0:03:02.9]} 7. Re1+ {[%clk 0:02:59.6]} 7... Nge7 {[%clk 0:03:02.4]} 8. c3 {[%clk
0:02:54.7]} 8... Qd7 {[%clk 0:03:01.1]} 9. b4 {[%clk 0:02:54.6]} 9... Bf5 {[%clk
0:02:53.1]} 10. Bxf5 {[%clk 0:02:42.7]} 10... Qxf5 {[%clk 0:02:55]} 11. b5
{[%clk 0:02:42.3]} 11... Na5 {[%clk 0:02:53.1]} 12. Ba3 {[%clk 0:02:27.6]} 12...
Nc4 {[%clk 0:02:42]} 13. Bxd6 {[%clk 0:02:16.3]} 13... Nxd6 {[%clk 0:02:39.8]}
14. Qe2 {[%clk 0:02:00.1]} 14... Qe4 {[%clk 0:01:31]} 15. Qf1 {[%clk 0:01:50.4]}
15... Qf4 {[%clk 0:00:58.4]} 16. Nbd2 {[%clk 0:01:39.3]} 16... Ne4 {[%clk
0:00:43.1]} 17. g3 {[%clk 0:00:46.8]} 17... Nxd2 {[%clk 0:00:26.7]} 18. gxf4
{[%clk 0:00:43.6]} 18... Nxf1 {[%clk 0:00:25.5]} 19. Kxf1 {[%clk 0:00:44.9]}
19... f6 {[%clk 0:00:24]} 20. Re2 {[%clk 0:00:32.1]} 20... Kf7 {[%clk
0:00:23.3]} 21. Nh4 {[%clk 0:00:25.1]} 21... Rhe8 {[%clk 0:00:14.3]} 22. Rae1
{[%clk 0:00:25.6]} 22... Ng6 {[%clk 0:00:15]} 23. Nxg6 {[%clk 0:00:19.2]} 23...
Rxe2 {[%clk 0:00:10.3]} 24. Rxe2 {[%clk 0:00:12.6]} 24... hxg6 {[%clk
0:00:11.4]} 25. Kg2 {[%clk 0:00:13.5]} 25... a6 {[%clk 0:00:12]} 26. a4 {[%clk
0:00:13.1]} 26... axb5 {[%clk 0:00:12.8]} 27. axb5 {[%clk 0:00:14.3]} 27... Ra3
{[%clk 0:00:13.7]} 28. b6 {[%clk 0:00:11.6]} 28... c6 {[%clk 0:00:07.6]} 29. Re3
{[%clk 0:00:08.7]} 29... Rb3 {[%clk 0:00:07.8]} 30. Kf3 {[%clk 0:00:07.6]} 30...
Rxb6 {[%clk 0:00:08.9]} 31. Ke2 {[%clk 0:00:07.9]} 31... Rb2+ {[%clk 0:00:09.5]}
32. Kf3 {[%clk 0:00:08.9]} 32... b5 {[%clk 0:00:10]} 33. Re1 {[%clk 0:00:09.4]}
33... Rb3 {[%clk 0:00:08.9]} 34. Re3 {[%clk 0:00:10.3]} 34... b4 {[%clk
0:00:07.4]} 35. cxb4 {[%clk 0:00:10.4]} 35... Rxb4 {[%clk 0:00:09.3]} 36. Rc3
{[%clk 0:00:11.5]} 36... Rc4 {[%clk 0:00:08.8]} 37. Rxc4 {[%clk 0:00:12.1]}
37... dxc4 {[%clk 0:00:10.7]} 38. Ke4 {[%clk 0:00:13.6]} 38... Ke6 {[%clk
0:00:11.2]} 39. f3 {[%clk 0:00:12.6]} 39... Kd6 {[%clk 0:00:08.7]} 40. h4 {[%clk
0:00:11.3]} 40... Ke6 {[%clk 0:00:08.7]} 41. h5 {[%clk 0:00:11.1]} 41... f5+
{[%clk 0:00:07.3]} 42. Ke3 {[%clk 0:00:12.3]} 42... gxh5 {[%clk 0:00:08.4]} 0-1

[Event "*** Titled Tuesday Blitz"]
[Site "Chess.com"]
[Date "2019.03.05"]
[Round "9"]
[White "monalize"]
[Black "Al_Shima"]
[Result "1-0"]
[WhiteElo "2329"]
[BlackElo "2431"]
[TimeControl "180+2"]
[EndTime "15:13:57 PST"]
[Termination "monalize won by resignation"]

1. e4 {[%clk 0:03:01.9]} 1... d5 {[%clk 0:03:00.6]} 2. exd5 {[%clk 0:03:01.9]}
2... Nf6 {[%clk 0:03:01.7]} 3. d4 {[%clk 0:03:01.5]} 3... Nxd5 {[%clk
0:03:02.6]} 4. c4 {[%clk 0:03:00.6]} 4... Nb6 {[%clk 0:03:03.5]} 5. c5 {[%clk
0:03:01.3]} 5... N6d7 {[%clk 0:03:04.2]} 6. Nc3 {[%clk 0:03:01.6]} 6... e5
{[%clk 0:03:05.4]} 7. dxe5 {[%clk 0:02:46.4]} 7... Nxc5 {[%clk 0:03:05.9]} 8.
Qxd8+ {[%clk 0:02:38.8]} 8... Kxd8 {[%clk 0:03:07.8]} 9. Be3 {[%clk 0:02:39.1]}
9... c6 {[%clk 0:03:01]} 10. O-O-O+ {[%clk 0:02:38.7]} 10... Kc7 {[%clk
0:03:01.9]} 11. f4 {[%clk 0:02:35.8]} 11... Bg4 {[%clk 0:02:49.1]} 12. Be2
{[%clk 0:02:18.4]} 12... Bf5 {[%clk 0:02:36.7]} 13. g4 {[%clk 0:02:13.2]} 13...
Bc8 {[%clk 0:02:36.7]} 14. Nh3 {[%clk 0:01:52.8]} 14... Be7 {[%clk 0:02:35.3]}
15. Nf2 {[%clk 0:01:52.9]} 15... h5 {[%clk 0:02:28.7]} 16. gxh5 {[%clk
0:01:51.1]} 16... Bf5 {[%clk 0:02:23.9]} 17. Rhg1 {[%clk 0:01:45.4]} 17... Rh7
{[%clk 0:02:21.4]} 18. Bg4 {[%clk 0:01:39.3]} 18... Bxg4 {[%clk 0:02:14.9]} 19.
Rxg4 {[%clk 0:01:39.1]} 19... Nbd7 {[%clk 0:02:13]} 20. Rdg1 {[%clk 0:01:25.1]}
20... Bf8 {[%clk 0:02:13.7]} 21. Rg5 {[%clk 0:01:22.5]} 21... Re8 {[%clk
0:02:04.1]} 22. Rf5 {[%clk 0:01:20.2]} 22... f6 {[%clk 0:01:59.3]} 23. Ng4
{[%clk 0:01:00]} 23... fxe5 {[%clk 0:01:50.9]} 24. fxe5 {[%clk 0:01:00.1]} 24...
Nd3+ {[%clk 0:01:44.1]} 25. Kc2 {[%clk 0:01:00.1]} 25... N3xe5 {[%clk 0:01:44]}
26. Bf4 {[%clk 0:00:45.8]} 26... Bd6 {[%clk 0:01:42.4]} 27. Ne4 {[%clk
0:00:35.1]} 27... Nc4 {[%clk 0:01:15.3]} 28. Nxd6 {[%clk 0:00:33.2]} 28... Nxd6
{[%clk 0:01:16.2]} 29. Rd1 {[%clk 0:00:26.7]} 29... Re6 {[%clk 0:01:16.6]} 30.
Bg3 {[%clk 0:00:26.4]} 30... g6 {[%clk 0:00:20.5]} 31. hxg6 {[%clk 0:00:19.6]}
31... Rxg6 {[%clk 0:00:22.4]} 32. Ne5 {[%clk 0:00:17.9]} 32... Nxe5 {[%clk
0:00:22.4]} 33. Rxe5 {[%clk 0:00:18.1]} 33... Kb6 {[%clk 0:00:21.5]} 34. Re3
{[%clk 0:00:16]} 34... c5 {[%clk 0:00:21.4]} 35. Rxd6+ {[%clk 0:00:14.8]} 35...
Rxd6 {[%clk 0:00:22]} 36. Bxd6 {[%clk 0:00:16.1]} 36... Kc6 {[%clk 0:00:23.9]}
37. Bg3 {[%clk 0:00:16.5]} 37... Kd5 {[%clk 0:00:24.7]} 38. Re2 {[%clk
0:00:16.9]} 38... b5 {[%clk 0:00:25.4]} 39. h4 {[%clk 0:00:17.6]} 39... a5
{[%clk 0:00:26.5]} 40. Rh2 {[%clk 0:00:18.4]} 40... Rh5 {[%clk 0:00:26.9]} 41.
Kd3 {[%clk 0:00:18.3]} 41... c4+ {[%clk 0:00:28.3]} 42. Ke3 {[%clk 0:00:19.2]}
42... b4 {[%clk 0:00:29.5]} 43. Kf4 {[%clk 0:00:20]} 43... Kd4 {[%clk
0:00:30.6]} 44. Kg4 {[%clk 0:00:20.5]} 44... Rh8 {[%clk 0:00:30.9]} 45. h5
{[%clk 0:00:20.6]} 45... c3 {[%clk 0:00:32]} 46. bxc3+ {[%clk 0:00:20.6]} 46...
bxc3 {[%clk 0:00:33.9]} 47. Bf4 {[%clk 0:00:21.1]} 47... Kd3 {[%clk 0:00:34.5]}
48. h6 {[%clk 0:00:21.8]} 48... c2 {[%clk 0:00:35.6]} 49. Bg5 {[%clk 0:00:22.9]}
49... Rg8 {[%clk 0:00:35.9]} 50. Rh1 {[%clk 0:00:23.6]} 50... Ke2 {[%clk
0:00:29]} 51. h7 {[%clk 0:00:24.2]} 51... Rh8 {[%clk 0:00:30.2]} 52. Kf5 {[%clk
0:00:25]} 1-0